{"text_format":"1","workbook":"xlsx","n_sheets":3,"sheets":["دليل الاصناف","فاتورة مبيعات","اليومية العامه"],"not_rendered":{"charts":0,"images":0,"macros":1,"external_links":0,"defined_names":3,"comments":0,"pivot_tables":0},"unopened":[],"bounds":{"document_bytes":16777216,"sheet_cells":100000,"rows_first":2000,"rows_last":500,"rows_between":2000,"halvings":0,"cell_chars":16384,"cell_head_chars":4096},"cells_cut":0,"cells_raw":0,"read":"whole","date_system":"1900"}

{"sheet":"دليل الاصناف","index":0,"n_rows":410,"n_cols":16,"rows_kept":410,"cut":false,"hidden":false,"merged":[]}
[]
[]
[]
["Column1","حسابات القوائم","حسابات رئيسيه","مجموعة_الصنف","اسم الصنف","الوحدة","سعر البيع","سعر الشراء","صافي الربح","سعر البيع المقترح",null,"أسماء الحسابات",null,"الشركات المساهمة",null,"شركات الديلفيري"]
["ادوات منزلية"," المطبقايات","قطعة"," المطبقايات"," مطبقيه","قطعة",85,70,15,null,null,{"$f":"IFERROR(INDEX(مجموعة_الصنف1,MATCH(0,IF(مجموعة_الصنف1=\"\",\"\",COUNTIF($L$4:L4,مجموعة_الصنف1)),0)),\"\")","v":" المطبقايات"},null,"HoMeTuKE",null,"هوم ترافيل"]
["ادوات منزلية"," المطبقايات","قطعة"," المطبقايات","مطبقيه استانلس","قطعة",190,175,15,null,null,{"$f":"IFERROR(INDEX(مجموعة_الصنف1,MATCH(0,IF(مجموعة_الصنف1=\"\",\"\",COUNTIF($L$4:L5,مجموعة_الصنف1)),0)),\"\")","v":" وصله حنفيه"},null,"CaairOTop",null,"السهم للشحن"]
["ادوات منزلية"," المطبقايات","قطعة"," المطبقايات","المطبقيه العملاقه مقاس ٦٥سم","قطعة",510,495,15,null,null,{"$f":"IFERROR(INDEX(مجموعة_الصنف1,MATCH(0,IF(مجموعة_الصنف1=\"\",\"\",COUNTIF($L$4:L6,مجموعة_الصنف1)),0)),\"\")","v":"ادوات اخري"},null,"Zahran",null,"عبر البحار"]
["ادوات منزلية"," المطبقايات","قطعة"," المطبقايات","مطبقيه معدن مقاس ٦٥ سم ","قطعة",510,495,15,null,null,{"$f":"IFERROR(INDEX(مجموعة_الصنف1,MATCH(0,IF(مجموعة_الصنف1=\"\",\"\",COUNTIF($L$4:L7,مجموعة_الصنف1)),0)),\"\")","v":"ادوات شواء"},null,"kitchenIN",null,"الاقليمي"]
["ادوات منزلية"," المطبقايات","قطعة"," المطبقايات","مطبقيه","قطعة",530,515,15,null,null,{"$f":"IFERROR(INDEX(مجموعة_الصنف1,MATCH(0,IF(مجموعة_الصنف1=\"\",\"\",COUNTIF($L$4:L8,مجموعة_الصنف1)),0)),\"\")","v":"ادوات نظافة"},null,"kitchenTO"]
["ادوات منزلية"," المطبقايات","قطعة"," المطبقايات"," مطبقيه مستورده ٣ دور","قطعة",550,535,15,null,null,{"$f":"IFERROR(INDEX(مجموعة_الصنف1,MATCH(0,IF(مجموعة_الصنف1=\"\",\"\",COUNTIF($L$4:L9,مجموعة_الصنف1)),0)),\"\")","v":"ارفف"},null,"FORHome"]
["ادوات منزلية"," المطبقايات","قطعة"," المطبقايات","المطبقيه العملاقه مقاس 85سم ","قطعة",550,535,15,null,null,{"$f":"IFERROR(INDEX(مجموعة_الصنف1,MATCH(0,IF(مجموعة_الصنف1=\"\",\"\",COUNTIF($L$4:L10,مجموعة_الصنف1)),0)),\"\")","v":"استاند"}]
["ادوات منزلية"," المطبقايات","قطعة"," المطبقايات","المطبقيه العملاقه مقاس ٨٥ ","قطعة",550,535,15,null,null,{"$f":"IFERROR(INDEX(مجموعة_الصنف1,MATCH(0,IF(مجموعة_الصنف1=\"\",\"\",COUNTIF($L$4:L11,مجموعة_الصنف1)),0)),\"\")","v":"استيكر"}]
["ادوات منزلية"," وصله حنفيه","قطعة"," وصله حنفيه","وصله حنفيه جامبو بزرار","قطعة",25,10,15,null,null,{"$f":"IFERROR(INDEX(مجموعة_الصنف1,MATCH(0,IF(مجموعة_الصنف1=\"\",\"\",COUNTIF($L$4:L12,مجموعة_الصنف1)),0)),\"\")","v":"اطباق"}]
["ادوات منزلية"," وصله حنفيه","قطعة"," وصله حنفيه"," وصله حنفيه","قطعة",50,35,15,null,null,{"$f":"IFERROR(INDEX(مجموعة_الصنف1,MATCH(0,IF(مجموعة_الصنف1=\"\",\"\",COUNTIF($L$4:L13,مجموعة_الصنف1)),0)),\"\")","v":"اكسسوارات"}]
["ادوات منزلية"," وصله حنفيه","قطعة"," وصله حنفيه","وصله حنفيه جامبو بزرار ","قطعة",50,35,15,null,null,{"$f":"IFERROR(INDEX(مجموعة_الصنف1,MATCH(0,IF(مجموعة_الصنف1=\"\",\"\",COUNTIF($L$4:L14,مجموعة_الصنف1)),0)),\"\")","v":"اكواب"}]
["ادوات منزلية","ادوات اخري","قطعة","ادوات اخري"," قفل ثلاجه","قطعة",20,5,15,null,null,{"$f":"IFERROR(INDEX(مجموعة_الصنف1,MATCH(0,IF(مجموعة_الصنف1=\"\",\"\",COUNTIF($L$4:L15,مجموعة_الصنف1)),0)),\"\")","v":"المنظمات"}]
["ادوات منزلية","ادوات اخري","قطعة","ادوات اخري","حاجز دهون","قطعة",35,20,15,null,null,{"$f":"IFERROR(INDEX(مجموعة_الصنف1,MATCH(0,IF(مجموعة_الصنف1=\"\",\"\",COUNTIF($L$4:L16,مجموعة_الصنف1)),0)),\"\")","v":"انتيكات"}]
["ادوات منزلية","ادوات اخري","قطعة","ادوات اخري","قواعد رفع الغسالة","قطعة",35,20,15,null,null,{"$f":"IFERROR(INDEX(مجموعة_الصنف1,MATCH(0,IF(مجموعة_الصنف1=\"\",\"\",COUNTIF($L$4:L17,مجموعة_الصنف1)),0)),\"\")","v":"باسكت"}]
["ادوات منزلية","ادوات اخري","قطعة","ادوات اخري","مريله مطبخ لون رصاصي","قطعة",50,35,15,null,null,{"$f":"IFERROR(INDEX(مجموعة_الصنف1,MATCH(0,IF(مجموعة_الصنف1=\"\",\"\",COUNTIF($L$4:L18,مجموعة_الصنف1)),0)),\"\")","v":"براد"}]
["ادوات منزلية","ادوات اخري","قطعة","ادوات اخري","فوطه مايكروفايبر فرو تقيل ١ حجم وسط ١ حجم جامبو","قطعة",55,40,15,null,null,{"$f":"IFERROR(INDEX(مجموعة_الصنف1,MATCH(0,IF(مجموعة_الصنف1=\"\",\"\",COUNTIF($L$4:L19,مجموعة_الصنف1)),0)),\"\")","v":"تربو"}]
["ادوات منزلية","ادوات اخري","قطعة","ادوات اخري","بخاخ زيت","قطعة",60,45,15,null,null,{"$f":"IFERROR(INDEX(مجموعة_الصنف1,MATCH(0,IF(مجموعة_الصنف1=\"\",\"\",COUNTIF($L$4:L20,مجموعة_الصنف1)),0)),\"\")","v":"ترولي"}]
["ادوات منزلية","ادوات اخري","قطعة","ادوات اخري"," مبشره الجبنه السحريه ","قطعة",65,50,15,null,null,{"$f":"IFERROR(INDEX(مجموعة_الصنف1,MATCH(0,IF(مجموعة_الصنف1=\"\",\"\",COUNTIF($L$4:L21,مجموعة_الصنف1)),0)),\"\")","v":"جردل"}]
["ادوات منزلية","ادوات اخري","قطعة","ادوات اخري"," حاجز دهون","قطعة",70,55,15,null,null,{"$f":"IFERROR(INDEX(مجموعة_الصنف1,MATCH(0,IF(مجموعة_الصنف1=\"\",\"\",COUNTIF($L$4:L22,مجموعة_الصنف1)),0)),\"\")","v":"جزامات"}]
["ادوات منزلية","ادوات اخري","قطعة","ادوات اخري","حقنه تتبيل الفراخ","قطعة",70,55,15,null,null,{"$f":"IFERROR(INDEX(مجموعة_الصنف1,MATCH(0,IF(مجموعة_الصنف1=\"\",\"\",COUNTIF($L$4:L23,مجموعة_الصنف1)),0)),\"\")","v":"حامل"}]
["ادوات منزلية","ادوات اخري","قطعة","ادوات اخري"," اندر شيلف اسود  ","قطعة",120,105,15,null,null,{"$f":"IFERROR(INDEX(مجموعة_الصنف1,MATCH(0,IF(مجموعة_الصنف1=\"\",\"\",COUNTIF($L$4:L24,مجموعة_الصنف1)),0)),\"\")","v":"خدمة التوصيل"}]
["ادوات منزلية","ادوات اخري","قطعة","ادوات اخري"," عمود طعام لونه ازرق","قطعة",120,105,15,null,null,{"$f":"IFERROR(INDEX(مجموعة_الصنف1,MATCH(0,IF(مجموعة_الصنف1=\"\",\"\",COUNTIF($L$4:L25,مجموعة_الصنف1)),0)),\"\")","v":"خزنات"}]
["ادوات منزلية","ادوات اخري","قطعة","ادوات اخري","بونبونيره ","قطعة",140,125,15,null,null,{"$f":"IFERROR(INDEX(مجموعة_الصنف1,MATCH(0,IF(مجموعة_الصنف1=\"\",\"\",COUNTIF($L$4:L26,مجموعة_الصنف1)),0)),\"\")","v":"درج تلاجه"}]
["ادوات منزلية","ادوات اخري","قطعة","ادوات اخري","طقم سحابه 3 دور ابيض ","قطعة",150,135,15,null,null,{"$f":"IFERROR(INDEX(مجموعة_الصنف1,MATCH(0,IF(مجموعة_الصنف1=\"\",\"\",COUNTIF($L$4:L27,مجموعة_الصنف1)),0)),\"\")","v":"دواسات"}]
["ادوات منزلية","ادوات اخري","قطعة","ادوات اخري"," فولدر تطبيق الملابس","قطعة",260,245,15,null,null,{"$f":"IFERROR(INDEX(مجموعة_الصنف1,MATCH(0,IF(مجموعة_الصنف1=\"\",\"\",COUNTIF($L$4:L28,مجموعة_الصنف1)),0)),\"\")","v":"دولاب"}]
["ادوات منزلية","ادوات اخري","قطعة","ادوات اخري","فولدر تطبيق الملابس","قطعة",650,635,15,null,null,{"$f":"IFERROR(INDEX(مجموعة_الصنف1,MATCH(0,IF(مجموعة_الصنف1=\"\",\"\",COUNTIF($L$4:L29,مجموعة_الصنف1)),0)),\"\")","v":"ديسبنسر"}]
["ادوات منزلية","ادوات شواء","قطعة","ادوات شواء","شوايه فراخ","قطعة",30,15,15,null,null,{"$f":"IFERROR(INDEX(مجموعة_الصنف1,MATCH(0,IF(مجموعة_الصنف1=\"\",\"\",COUNTIF($L$4:L30,مجموعة_الصنف1)),0)),\"\")","v":"ديكورات"}]
["ادوات منزلية","ادوات شواء","قطعة","ادوات شواء","اسياخ شوي","قطعة",50,35,15,null,null,{"$f":"IFERROR(INDEX(مجموعة_الصنف1,MATCH(0,IF(مجموعة_الصنف1=\"\",\"\",COUNTIF($L$4:L31,مجموعة_الصنف1)),0)),\"\")","v":"ركنة حمام"}]
["ادوات منزلية","ادوات شواء","قطعة","ادوات شواء","شوايه صغيره اسود","قطعة",240,225,15,null,null,{"$f":"IFERROR(INDEX(مجموعة_الصنف1,MATCH(0,IF(مجموعة_الصنف1=\"\",\"\",COUNTIF($L$4:L32,مجموعة_الصنف1)),0)),\"\")","v":"زجاجة"}]
["ادوات منزلية","ادوات نظافة","قطعة","ادوات نظافة"," باكت ليفه مطبخ ٤ ليفه","قطعة",40,25,15,null,null,{"$f":"IFERROR(INDEX(مجموعة_الصنف1,MATCH(0,IF(مجموعة_الصنف1=\"\",\"\",COUNTIF($L$4:L33,مجموعة_الصنف1)),0)),\"\")","v":"ستائر"}]
["ادوات منزلية","ارفف","قطعة","ارفف","الرف الدورين  لون البينك","قطعة",75,60,15,null,null,{"$f":"IFERROR(INDEX(مجموعة_الصنف1,MATCH(0,IF(مجموعة_الصنف1=\"\",\"\",COUNTIF($L$4:L34,مجموعة_الصنف1)),0)),\"\")","v":"سكاكين"}]
["ادوات منزلية","ارفف","قطعة","ارفف"," رف ايكيا  لون اسود ","قطعة",80,65,15,null,null,{"$f":"IFERROR(INDEX(مجموعة_الصنف1,MATCH(0,IF(مجموعة_الصنف1=\"\",\"\",COUNTIF($L$4:L35,مجموعة_الصنف1)),0)),\"\")","v":"سلم"}]
["ادوات منزلية","ارفف","قطعة","ارفف","رف ايكيا ابيض مستطيل","قطعة",80,65,15,null,null,{"$f":"IFERROR(INDEX(مجموعة_الصنف1,MATCH(0,IF(مجموعة_الصنف1=\"\",\"\",COUNTIF($L$4:L36,مجموعة_الصنف1)),0)),\"\")","v":"شازلونج"}]
["ادوات منزلية","ارفف","قطعة","ارفف","الرف الدوار ٢ دور","قطعة",90,75,15,null,null,{"$f":"IFERROR(INDEX(مجموعة_الصنف1,MATCH(0,IF(مجموعة_الصنف1=\"\",\"\",COUNTIF($L$4:L37,مجموعة_الصنف1)),0)),\"\")","v":"شانون"}]
["ادوات منزلية","ارفف","قطعة","ارفف"," رف ديكور بيت ( ٢ كشمير-٢ ابيض-٢ اسود ) ","قطعة",150,135,15,null,null,{"$f":"IFERROR(INDEX(مجموعة_الصنف1,MATCH(0,IF(مجموعة_الصنف1=\"\",\"\",COUNTIF($L$4:L38,مجموعة_الصنف1)),0)),\"\")","v":"شماعات"}]
["ادوات منزلية","ارفف","قطعة","ارفف"," طقم رف ايكيا واحد ابيض وواحد اسود ","قطعة",160,145,15,null,null,{"$f":"IFERROR(INDEX(مجموعة_الصنف1,MATCH(0,IF(مجموعة_الصنف1=\"\",\"\",COUNTIF($L$4:L39,مجموعة_الصنف1)),0)),\"\")","v":"شنط"}]
["ادوات منزلية","ارفف","قطعة","ارفف","رف ايكيا  لون اسود ","قطعة",160,145,15,null,null,{"$f":"IFERROR(INDEX(مجموعة_الصنف1,MATCH(0,IF(مجموعة_الصنف1=\"\",\"\",COUNTIF($L$4:L40,مجموعة_الصنف1)),0)),\"\")","v":"صبانه"}]
["ادوات منزلية","ارفف","قطعة","ارفف","طقم ارفف ايكيا لون اسود","قطعة",160,145,15,null,null,{"$f":"IFERROR(INDEX(مجموعة_الصنف1,MATCH(0,IF(مجموعة_الصنف1=\"\",\"\",COUNTIF($L$4:L41,مجموعة_الصنف1)),0)),\"\")","v":"صفايه"}]
["ادوات منزلية","ارفف","قطعة","ارفف","رف المطبخ المعدن ٣ دور","قطعة",200,185,15,null,null,{"$f":"IFERROR(INDEX(مجموعة_الصنف1,MATCH(0,IF(مجموعة_الصنف1=\"\",\"\",COUNTIF($L$4:L42,مجموعة_الصنف1)),0)),\"\")","v":"صواني"}]
["ادوات منزلية","ارفف","قطعة","ارفف","طقم رف ايكيا لون ابيض","قطعة",200,185,15,null,null,{"$f":"IFERROR(INDEX(مجموعة_الصنف1,MATCH(0,IF(مجموعة_الصنف1=\"\",\"\",COUNTIF($L$4:L43,مجموعة_الصنف1)),0)),\"\")","v":"طاولات"}]
["ادوات منزلية","ارفف","قطعة","ارفف","رف ايكيا مستطيل ابيض ","قطعة",240,225,15,null,null,{"$f":"IFERROR(INDEX(مجموعة_الصنف1,MATCH(0,IF(مجموعة_الصنف1=\"\",\"\",COUNTIF($L$4:L44,مجموعة_الصنف1)),0)),\"\")","v":"طقم حمام"}]
["ادوات منزلية","ارفف","قطعة","ارفف","طقم الارفف العبقرينو","قطعة",370,355,15,null,null,{"$f":"IFERROR(INDEX(مجموعة_الصنف1,MATCH(0,IF(مجموعة_الصنف1=\"\",\"\",COUNTIF($L$4:L45,مجموعة_الصنف1)),0)),\"\")","v":"طقم شاي"}]
["ادوات منزلية","استاند","قطعة","استاند","استاند تورته","قطعة",400,385,15,null,null,{"$f":"IFERROR(INDEX(مجموعة_الصنف1,MATCH(0,IF(مجموعة_الصنف1=\"\",\"\",COUNTIF($L$4:L46,مجموعة_الصنف1)),0)),\"\")","v":"طقم علب"}]
["ادوات منزلية","استاند","قطعة","استاند","واحد استاند فردي لوكس ","قطعة",110,95,15,null,null,{"$f":"IFERROR(INDEX(مجموعة_الصنف1,MATCH(0,IF(مجموعة_الصنف1=\"\",\"\",COUNTIF($L$4:L47,مجموعة_الصنف1)),0)),\"\")","v":"علب"}]
["ادوات منزلية","استاند","قطعة","استاند"," استاند فواكهه معدن ٢ دور","قطعة",160,145,15,null,null,{"$f":"IFERROR(INDEX(مجموعة_الصنف1,MATCH(0,IF(مجموعة_الصنف1=\"\",\"\",COUNTIF($L$4:L48,مجموعة_الصنف1)),0)),\"\")","v":"غطاء اثاث"}]
["ادوات منزلية","استاند","قطعة","استاند","استاند وشماعه ملابس","قطعة",210,195,15,null,null,{"$f":"IFERROR(INDEX(مجموعة_الصنف1,MATCH(0,IF(مجموعة_الصنف1=\"\",\"\",COUNTIF($L$4:L49,مجموعة_الصنف1)),0)),\"\")","v":"قاعده غساله"}]
["ادوات منزلية","استاند","قطعة","استاند"," استاند طوكيو لون اسود","قطعة",220,205,15,null,null,{"$f":"IFERROR(INDEX(مجموعة_الصنف1,MATCH(0,IF(مجموعة_الصنف1=\"\",\"\",COUNTIF($L$4:L50,مجموعة_الصنف1)),0)),\"\")","v":"كاتيل"}]
["ادوات منزلية","استاند","قطعة","استاند","استاند طوكيو","قطعة",230,215,15,null,null,{"$f":"IFERROR(INDEX(مجموعة_الصنف1,MATCH(0,IF(مجموعة_الصنف1=\"\",\"\",COUNTIF($L$4:L51,مجموعة_الصنف1)),0)),\"\")","v":"كفرات متنوعه"}]
["ادوات منزلية","استاند","قطعة","استاند","استاند ملابس طوكيو","قطعة",230,215,15,null,null,{"$f":"IFERROR(INDEX(مجموعة_الصنف1,MATCH(0,IF(مجموعة_الصنف1=\"\",\"\",COUNTIF($L$4:L52,مجموعة_الصنف1)),0)),\"\")","v":"لاصق"}]
["ادوات منزلية","استاند","قطعة","استاند","استاند ملابس مثلث لون بينك ","قطعة",230,215,15,null,null,{"$f":"IFERROR(INDEX(مجموعة_الصنف1,MATCH(0,IF(مجموعة_الصنف1=\"\",\"\",COUNTIF($L$4:L53,مجموعة_الصنف1)),0)),\"\")","v":"ماسورة استانلس"}]
["ادوات منزلية","استاند","قطعة","استاند","استاند حمام ","قطعة",230,215,15,null,null,{"$f":"IFERROR(INDEX(مجموعة_الصنف1,MATCH(0,IF(مجموعة_الصنف1=\"\",\"\",COUNTIF($L$4:L54,مجموعة_الصنف1)),0)),\"\")","v":"ماكينات متنوعه"}]
["ادوات منزلية","استاند","قطعة","استاند"," استاند غساله ","قطعة",270,255,15,null,null,{"$f":"IFERROR(INDEX(مجموعة_الصنف1,MATCH(0,IF(مجموعة_الصنف1=\"\",\"\",COUNTIF($L$4:L55,مجموعة_الصنف1)),0)),\"\")","v":"مانع اتربة"}]
["ادوات منزلية","استاند","قطعة","استاند"," ستاند غسالة","قطعة",300,285,15,null,null,{"$f":"IFERROR(INDEX(مجموعة_الصنف1,MATCH(0,IF(مجموعة_الصنف1=\"\",\"\",COUNTIF($L$4:L56,مجموعة_الصنف1)),0)),\"\")","v":"مرايات"}]
["ادوات منزلية","استاند","قطعة","استاند","استاند توابل مجلفن ٢دور","قطعة",300,285,15,null,null,{"$f":"IFERROR(INDEX(مجموعة_الصنف1,MATCH(0,IF(مجموعة_الصنف1=\"\",\"\",COUNTIF($L$4:L57,مجموعة_الصنف1)),0)),\"\")","v":"مريله"}]
["ادوات منزلية","استاند","قطعة","استاند","استاند توابل معدن مجلفن 2 دور ","قطعة",300,285,15,null,null,{"$f":"IFERROR(INDEX(مجموعة_الصنف1,MATCH(0,IF(مجموعة_الصنف1=\"\",\"\",COUNTIF($L$4:L58,مجموعة_الصنف1)),0)),\"\")","v":"مساحه"}]
["ادوات منزلية","استاند","قطعة","استاند","استاند عملاق ٤ دور  ابيض","قطعة",300,285,15,null,null,{"$f":"IFERROR(INDEX(مجموعة_الصنف1,MATCH(0,IF(مجموعة_الصنف1=\"\",\"\",COUNTIF($L$4:L59,مجموعة_الصنف1)),0)),\"\")","v":"مسدس تحمير"}]
["ادوات منزلية","استاند","قطعة","استاند","استاند ومنظم ملابس ابيض ","قطعة",300,285,15,null,null,{"$f":"IFERROR(INDEX(مجموعة_الصنف1,MATCH(0,IF(مجموعة_الصنف1=\"\",\"\",COUNTIF($L$4:L60,مجموعة_الصنف1)),0)),\"\")","v":"مضخات"}]
["ادوات منزلية","استاند","قطعة","استاند","استاند فردي بهوكات اسود ","قطعة",300,285,15,null,null,{"$f":"IFERROR(INDEX(مجموعة_الصنف1,MATCH(0,IF(مجموعة_الصنف1=\"\",\"\",COUNTIF($L$4:L61,مجموعة_الصنف1)),0)),\"\")","v":"مطاحن"}]
["ادوات منزلية","استاند","قطعة","استاند","استاند ومنظم الملابس الفرنساوي الفردي ","قطعة",330,315,15,null,null,{"$f":"IFERROR(INDEX(مجموعة_الصنف1,MATCH(0,IF(مجموعة_الصنف1=\"\",\"\",COUNTIF($L$4:L62,مجموعة_الصنف1)),0)),\"\")","v":"مفارش"}]
["ادوات منزلية","استاند","قطعة","استاند","استاند فواكهه ٣ دور","قطعة",330,315,15,null,null,{"$f":"IFERROR(INDEX(مجموعة_الصنف1,MATCH(0,IF(مجموعة_الصنف1=\"\",\"\",COUNTIF($L$4:L63,مجموعة_الصنف1)),0)),\"\")","v":"منشر ملابس"}]
["ادوات منزلية","استاند","قطعة","استاند","استاند توابل ٣ دور","قطعة",340,325,15,null,null,{"$f":"IFERROR(INDEX(مجموعة_الصنف1,MATCH(0,IF(مجموعة_الصنف1=\"\",\"\",COUNTIF($L$4:L64,مجموعة_الصنف1)),0)),\"\")","v":"منظف"}]
["ادوات منزلية","استاند","قطعة","استاند","استاند توابل مجلفن 3دور","قطعة",350,335,15,null,null,{"$f":"IFERROR(INDEX(مجموعة_الصنف1,MATCH(0,IF(مجموعة_الصنف1=\"\",\"\",COUNTIF($L$4:L65,مجموعة_الصنف1)),0)),\"\")","v":"منظمات للمطبخ"}]
["ادوات منزلية","استاند","قطعة","استاند","استاند توابل مجلفن ٣ دور","قطعة",350,335,15,null,null,{"$f":"IFERROR(INDEX(مجموعة_الصنف1,MATCH(0,IF(مجموعة_الصنف1=\"\",\"\",COUNTIF($L$4:L66,مجموعة_الصنف1)),0)),\"\")","v":""}]
["ادوات منزلية","استاند","قطعة","استاند","استاند توابل معدن مجلفن 3دور","قطعة",350,335,15,null,null,{"$f":"IFERROR(INDEX(مجموعة_الصنف1,MATCH(0,IF(مجموعة_الصنف1=\"\",\"\",COUNTIF($L$4:L67,مجموعة_الصنف1)),0)),\"\")","v":""}]
["ادوات منزلية","استاند","قطعة","استاند","استاند فرنساوي زوجي  اسود","قطعة",350,335,15,null,null,{"$f":"IFERROR(INDEX(مجموعة_الصنف1,MATCH(0,IF(مجموعة_الصنف1=\"\",\"\",COUNTIF($L$4:L68,مجموعة_الصنف1)),0)),\"\")","v":""}]
["ادوات منزلية","استاند","قطعة","استاند","استاند فرنساوي زوجي لون اسود","قطعة",400,385,15,null,null,{"$f":"IFERROR(INDEX(مجموعة_الصنف1,MATCH(0,IF(مجموعة_الصنف1=\"\",\"\",COUNTIF($L$4:L69,مجموعة_الصنف1)),0)),\"\")","v":""}]
["ادوات منزلية","استاند","قطعة","استاند","استاند ملابس زوجي  اسود","قطعة",400,385,15,null,null,{"$f":"IFERROR(INDEX(مجموعة_الصنف1,MATCH(0,IF(مجموعة_الصنف1=\"\",\"\",COUNTIF($L$4:L70,مجموعة_الصنف1)),0)),\"\")","v":""}]
["ادوات منزلية","استاند","قطعة","استاند","استاند ملابس فرنساوى زوجى اسود ","قطعة",400,385,15,null,null,{"$f":"IFERROR(INDEX(مجموعة_الصنف1,MATCH(0,IF(مجموعة_الصنف1=\"\",\"\",COUNTIF($L$4:L71,مجموعة_الصنف1)),0)),\"\")","v":""}]
["ادوات منزلية","استاند","قطعة","استاند","استاند ملابس مثلث ابيض ","قطعة",400,385,15,null,null,{"$f":"IFERROR(INDEX(مجموعة_الصنف1,MATCH(0,IF(مجموعة_الصنف1=\"\",\"\",COUNTIF($L$4:L72,مجموعة_الصنف1)),0)),\"\")","v":""}]
["ادوات منزلية","استاند","قطعة","استاند","الاستاند الزوجي ابيض  ","قطعة",400,385,15,null,null,{"$f":"IFERROR(INDEX(مجموعة_الصنف1,MATCH(0,IF(مجموعة_الصنف1=\"\",\"\",COUNTIF($L$4:L73,مجموعة_الصنف1)),0)),\"\")","v":""}]
["ادوات منزلية","استاند","قطعة","استاند","استاند ايطالي  اسود","قطعة",400,385,15,null,null,{"$f":"IFERROR(INDEX(مجموعة_الصنف1,MATCH(0,IF(مجموعة_الصنف1=\"\",\"\",COUNTIF($L$4:L74,مجموعة_الصنف1)),0)),\"\")","v":""}]
["ادوات منزلية","استاند","قطعة","استاند","استاند ملابس","قطعة",410,395,15,null,null,{"$f":"IFERROR(INDEX(مجموعة_الصنف1,MATCH(0,IF(مجموعة_الصنف1=\"\",\"\",COUNTIF($L$4:L75,مجموعة_الصنف1)),0)),\"\")","v":""}]
["ادوات منزلية","استاند","قطعة","استاند","استاند ملابس إيطالي","قطعة",410,395,15,null,null,{"$f":"IFERROR(INDEX(مجموعة_الصنف1,MATCH(0,IF(مجموعة_الصنف1=\"\",\"\",COUNTIF($L$4:L76,مجموعة_الصنف1)),0)),\"\")","v":""}]
["ادوات منزلية","استاند","قطعة","استاند","الاستاند الزوجي ابيض ","قطعة",410,395,15,null,null,{"$f":"IFERROR(INDEX(مجموعة_الصنف1,MATCH(0,IF(مجموعة_الصنف1=\"\",\"\",COUNTIF($L$4:L77,مجموعة_الصنف1)),0)),\"\")","v":""}]
["ادوات منزلية","استاند","قطعة","استاند","استاند زوجي اسود بهوكات","قطعة",410,395,15,null,null,{"$f":"IFERROR(INDEX(مجموعة_الصنف1,MATCH(0,IF(مجموعة_الصنف1=\"\",\"\",COUNTIF($L$4:L78,مجموعة_الصنف1)),0)),\"\")","v":""}]
["ادوات منزلية","استاند","قطعة","استاند","استاند زوجي جديد","قطعة",430,415,15,null,null,{"$f":"IFERROR(INDEX(مجموعة_الصنف1,MATCH(0,IF(مجموعة_الصنف1=\"\",\"\",COUNTIF($L$4:L79,مجموعة_الصنف1)),0)),\"\")","v":""}]
["ادوات منزلية","استاند","قطعة","استاند","استاند ايطالي معدن مطور3دور","قطعة",550,535,15,null,null,{"$f":"IFERROR(INDEX(مجموعة_الصنف1,MATCH(0,IF(مجموعة_الصنف1=\"\",\"\",COUNTIF($L$4:L80,مجموعة_الصنف1)),0)),\"\")","v":""}]
["ادوات منزلية","استاند","قطعة","استاند","استاند دولاب مزدوج","قطعة",655,640,15,null,null,{"$f":"IFERROR(INDEX(مجموعة_الصنف1,MATCH(0,IF(مجموعة_الصنف1=\"\",\"\",COUNTIF($L$4:L81,مجموعة_الصنف1)),0)),\"\")","v":""}]
["ادوات منزلية","استاند","قطعة","استاند","استاند مطور ٤ دور","قطعة",890,875,15,null,null,{"$f":"IFERROR(INDEX(مجموعة_الصنف1,MATCH(0,IF(مجموعة_الصنف1=\"\",\"\",COUNTIF($L$4:L82,مجموعة_الصنف1)),0)),\"\")","v":""}]
["ادوات منزلية","استاند","قطعة","استاند","استاند مطور ٤ دور ","قطعة",920,905,15,null,null,{"$f":"IFERROR(INDEX(مجموعة_الصنف1,MATCH(0,IF(مجموعة_الصنف1=\"\",\"\",COUNTIF($L$4:L83,مجموعة_الصنف1)),0)),\"\")","v":""}]
["ادوات منزلية","استاند","قطعة","استاند","الاستاند المطور 5ادوار","قطعة",920,905,15,null,null,{"$f":"IFERROR(INDEX(مجموعة_الصنف1,MATCH(0,IF(مجموعة_الصنف1=\"\",\"\",COUNTIF($L$4:L84,مجموعة_الصنف1)),0)),\"\")","v":""}]
["ادوات منزلية","استاند","قطعة","استاند","الاستاند المطور ٥ دور","قطعة",1100,1085,15,null,null,{"$f":"IFERROR(INDEX(مجموعة_الصنف1,MATCH(0,IF(مجموعة_الصنف1=\"\",\"\",COUNTIF($L$4:L85,مجموعة_الصنف1)),0)),\"\")","v":""}]
["ادوات منزلية","استاند","قطعة","استاند","الاستاند المطور ٥ دور ","قطعة",1100,1085,15,null,null,{"$f":"IFERROR(INDEX(مجموعة_الصنف1,MATCH(0,IF(مجموعة_الصنف1=\"\",\"\",COUNTIF($L$4:L86,مجموعة_الصنف1)),0)),\"\")","v":""}]
["ادوات منزلية","استاند","قطعة","استاند","الاستاند المطور العبقري 5دور ","قطعة",1250,1235,15,null,null,{"$f":"IFERROR(INDEX(مجموعة_الصنف1,MATCH(0,IF(مجموعة_الصنف1=\"\",\"\",COUNTIF($L$4:L87,مجموعة_الصنف1)),0)),\"\")","v":""}]
["ادوات منزلية","استاند","قطعة","استاند","الاستاند المتطور ٤ دور","قطعة",1250,1235,15,null,null,{"$f":"IFERROR(INDEX(مجموعة_الصنف1,MATCH(0,IF(مجموعة_الصنف1=\"\",\"\",COUNTIF($L$4:L88,مجموعة_الصنف1)),0)),\"\")","v":""}]
["ادوات منزلية","استاند","قطعة","استاند"," الاستاند المتطور العبقري","قطعة",1250,1235,15,null,null,{"$f":"IFERROR(INDEX(مجموعة_الصنف1,MATCH(0,IF(مجموعة_الصنف1=\"\",\"\",COUNTIF($L$4:L89,مجموعة_الصنف1)),0)),\"\")","v":""}]
["ادوات منزلية","استيكر","قطعة","استيكر","استيكر توابل","قطعة",1250,1235,15,null,null,{"$f":"IFERROR(INDEX(مجموعة_الصنف1,MATCH(0,IF(مجموعة_الصنف1=\"\",\"\",COUNTIF($L$4:L90,مجموعة_الصنف1)),0)),\"\")","v":""}]
["ادوات منزلية","استيكر","قطعة","استيكر","استيكر توابل واعشاب وبهارات","قطعة",1300,1285,15,null,null,{"$f":"IFERROR(INDEX(مجموعة_الصنف1,MATCH(0,IF(مجموعة_الصنف1=\"\",\"\",COUNTIF($L$4:L91,مجموعة_الصنف1)),0)),\"\")","v":""}]
["ادوات منزلية","استيكر","قطعة","استيكر","رول استيكر مطبخ لون لبني ف بيج","قطعة",1400,1385,15,null,null,{"$f":"IFERROR(INDEX(مجموعة_الصنف1,MATCH(0,IF(مجموعة_الصنف1=\"\",\"\",COUNTIF($L$4:L92,مجموعة_الصنف1)),0)),\"\")","v":""}]
["ادوات منزلية","اطباق","قطعة","اطباق","طبق التسالي فيونكه لون البينك ","قطعة",10,-5,15,null,null,{"$f":"IFERROR(INDEX(مجموعة_الصنف1,MATCH(0,IF(مجموعة_الصنف1=\"\",\"\",COUNTIF($L$4:L93,مجموعة_الصنف1)),0)),\"\")","v":""}]
["ادوات منزلية","اطباق","قطعة","اطباق","طبق تورته خشب ب غطاء زجاج ","قطعة",10,-5,15,null,null,{"$f":"IFERROR(INDEX(مجموعة_الصنف1,MATCH(0,IF(مجموعة_الصنف1=\"\",\"\",COUNTIF($L$4:L94,مجموعة_الصنف1)),0)),\"\")","v":""}]
["ادوات منزلية","اطباق","قطعة","اطباق","طبق تسالي جولد ١ دور لون زيتي","قطعة",160,145,15,null,null,{"$f":"IFERROR(INDEX(مجموعة_الصنف1,MATCH(0,IF(مجموعة_الصنف1=\"\",\"\",COUNTIF($L$4:L95,مجموعة_الصنف1)),0)),\"\")","v":""}]
["ادوات منزلية","اطباق","قطعة","اطباق","طبق بيتزا بورسلين ","قطعة",20,5,15,null,null,{"$f":"IFERROR(INDEX(مجموعة_الصنف1,MATCH(0,IF(مجموعة_الصنف1=\"\",\"\",COUNTIF($L$4:L96,مجموعة_الصنف1)),0)),\"\")","v":""}]
["ادوات منزلية","اطباق","قطعة","اطباق"," طبق بورسلين مسطحه ","قطعة",170,155,15,null,null,{"$f":"IFERROR(INDEX(مجموعة_الصنف1,MATCH(0,IF(مجموعة_الصنف1=\"\",\"\",COUNTIF($L$4:L97,مجموعة_الصنف1)),0)),\"\")","v":""}]
["ادوات منزلية","اطباق","قطعة","اطباق","طبق بيتزا بورسيلين أشكال مختلفه ","قطعة",200,185,15,null,null,{"$f":"IFERROR(INDEX(مجموعة_الصنف1,MATCH(0,IF(مجموعة_الصنف1=\"\",\"\",COUNTIF($L$4:L98,مجموعة_الصنف1)),0)),\"\")","v":""}]
["ادوات منزلية","اكسسوارات","قطعة","اكسسوارات"," منامه عين ","قطعة",325,310,15,null,null,{"$f":"IFERROR(INDEX(مجموعة_الصنف1,MATCH(0,IF(مجموعة_الصنف1=\"\",\"\",COUNTIF($L$4:L99,مجموعة_الصنف1)),0)),\"\")","v":""}]
["ادوات منزلية","اكسسوارات","قطعة","اكسسوارات","جهاز تجفيف الاظافر ","قطعة",385,370,15,null,null,{"$f":"IFERROR(INDEX(مجموعة_الصنف1,MATCH(0,IF(مجموعة_الصنف1=\"\",\"\",COUNTIF($L$4:L100,مجموعة_الصنف1)),0)),\"\")","v":""}]
["ادوات منزلية","اكسسوارات","قطعة","اكسسوارات"," فرشه تنضيف اسنان ومساج ","قطعة",390,375,15,null,null,{"$f":"IFERROR(INDEX(مجموعة_الصنف1,MATCH(0,IF(مجموعة_الصنف1=\"\",\"\",COUNTIF($L$4:L101,مجموعة_الصنف1)),0)),\"\")","v":""}]
["ادوات منزلية","اكواب","قطعة","اكواب","طقم فوط ارنوب","قطعة",50,35,15,null,null,{"$f":"IFERROR(INDEX(مجموعة_الصنف1,MATCH(0,IF(مجموعة_الصنف1=\"\",\"\",COUNTIF($L$4:L102,مجموعة_الصنف1)),0)),\"\")","v":""}]
["ادوات منزلية","اكواب","قطعة","اكواب","طقم فوط ارنوب","قطعة",80,65,15,null,null,{"$f":"IFERROR(INDEX(مجموعة_الصنف1,MATCH(0,IF(مجموعة_الصنف1=\"\",\"\",COUNTIF($L$4:L103,مجموعة_الصنف1)),0)),\"\")","v":""}]
["ادوات منزلية","اكواب","قطعة","اكواب","كوب فشار","قطعة",160,145,15,null,null,{"$f":"IFERROR(INDEX(مجموعة_الصنف1,MATCH(0,IF(مجموعة_الصنف1=\"\",\"\",COUNTIF($L$4:L104,مجموعة_الصنف1)),0)),\"\")","v":""}]
["ادوات منزلية","اكواب","قطعة","اكواب","كوفى بريس","قطعة",30,15,15,null,null,{"$f":"IFERROR(INDEX(مجموعة_الصنف1,MATCH(0,IF(مجموعة_الصنف1=\"\",\"\",COUNTIF($L$4:L105,مجموعة_الصنف1)),0)),\"\")","v":""}]
["ادوات منزلية","اكواب","قطعة","اكواب","طقم كاندي جار","قطعة",35,20,15,null,null,{"$f":"IFERROR(INDEX(مجموعة_الصنف1,MATCH(0,IF(مجموعة_الصنف1=\"\",\"\",COUNTIF($L$4:L106,مجموعة_الصنف1)),0)),\"\")","v":""}]
["ادوات منزلية","اكواب","قطعة","اكواب","طقم كاندي جار","قطعة",50,35,15,null,null,{"$f":"IFERROR(INDEX(مجموعة_الصنف1,MATCH(0,IF(مجموعة_الصنف1=\"\",\"\",COUNTIF($L$4:L107,مجموعة_الصنف1)),0)),\"\")","v":""}]
["ادوات منزلية","اكواب","قطعة","اكواب","طقم كاندي جار الطقم كامل","قطعة",110,95,15,null,null,{"$f":"IFERROR(INDEX(مجموعة_الصنف1,MATCH(0,IF(مجموعة_الصنف1=\"\",\"\",COUNTIF($L$4:L108,مجموعة_الصنف1)),0)),\"\")","v":""}]
["ادوات منزلية","اكواب","قطعة","اكواب","ترمس حراري ابيض 1500 ملل","قطعة",120,105,15,null,null,{"$f":"IFERROR(INDEX(مجموعة_الصنف1,MATCH(0,IF(مجموعة_الصنف1=\"\",\"\",COUNTIF($L$4:L109,مجموعة_الصنف1)),0)),\"\")","v":""}]
["ادوات منزلية","المنظمات","قطعة","المنظمات"," منظم ميكرويف","قطعة",220,205,15,null,null,{"$f":"IFERROR(INDEX(مجموعة_الصنف1,MATCH(0,IF(مجموعة_الصنف1=\"\",\"\",COUNTIF($L$4:L110,مجموعة_الصنف1)),0)),\"\")","v":""}]
["ادوات منزلية","المنظمات","قطعة","المنظمات","منظم شنط (لون اسود)","قطعة",220,205,15,null,null,{"$f":"IFERROR(INDEX(مجموعة_الصنف1,MATCH(0,IF(مجموعة_الصنف1=\"\",\"\",COUNTIF($L$4:L111,مجموعة_الصنف1)),0)),\"\")","v":""}]
["ادوات منزلية","المنظمات","قطعة","المنظمات","منظم شنط شفاف لون لاڤندر ","قطعة",225,210,15,null,null,{"$f":"IFERROR(INDEX(مجموعة_الصنف1,MATCH(0,IF(مجموعة_الصنف1=\"\",\"\",COUNTIF($L$4:L112,مجموعة_الصنف1)),0)),\"\")","v":""}]
["ادوات منزلية","المنظمات","قطعة","المنظمات","منظم شربات","قطعة",35,20,15,null,null,{"$f":"IFERROR(INDEX(مجموعة_الصنف1,MATCH(0,IF(مجموعة_الصنف1=\"\",\"\",COUNTIF($L$4:L113,مجموعة_الصنف1)),0)),\"\")","v":""}]
["ادوات منزلية","المنظمات","قطعة","المنظمات","منظم مكياج بدرج لون بينك","قطعة",35,20,15,null,null,{"$f":"IFERROR(INDEX(مجموعة_الصنف1,MATCH(0,IF(مجموعة_الصنف1=\"\",\"\",COUNTIF($L$4:L114,مجموعة_الصنف1)),0)),\"\")","v":""}]
["ادوات منزلية","المنظمات","قطعة","المنظمات","منظم مكياج بلاستيك بيور","قطعة",40,25,15,null,null,{"$f":"IFERROR(INDEX(مجموعة_الصنف1,MATCH(0,IF(مجموعة_الصنف1=\"\",\"\",COUNTIF($L$4:L115,مجموعة_الصنف1)),0)),\"\")","v":""}]
["ادوات منزلية","المنظمات","قطعة","المنظمات"," منظم درج شفاف ","قطعة",50,35,15,null,null,{"$f":"IFERROR(INDEX(مجموعة_الصنف1,MATCH(0,IF(مجموعة_الصنف1=\"\",\"\",COUNTIF($L$4:L116,مجموعة_الصنف1)),0)),\"\")","v":""}]
["ادوات منزلية","المنظمات","قطعة","المنظمات","منظم ادويه","قطعة",65,50,15,null,null,{"$f":"IFERROR(INDEX(مجموعة_الصنف1,MATCH(0,IF(مجموعة_الصنف1=\"\",\"\",COUNTIF($L$4:L117,مجموعة_الصنف1)),0)),\"\")","v":""}]
["ادوات منزلية","المنظمات","قطعة","المنظمات","منظم درج شرايح","قطعة",65,50,15,null,null,{"$f":"IFERROR(INDEX(مجموعة_الصنف1,MATCH(0,IF(مجموعة_الصنف1=\"\",\"\",COUNTIF($L$4:L118,مجموعة_الصنف1)),0)),\"\")","v":""}]
["ادوات منزلية","المنظمات","قطعة","المنظمات","منظم اكسسوار ","قطعة",70,55,15,null,null,{"$f":"IFERROR(INDEX(مجموعة_الصنف1,MATCH(0,IF(مجموعة_الصنف1=\"\",\"\",COUNTIF($L$4:L119,مجموعة_الصنف1)),0)),\"\")","v":""}]
["ادوات منزلية","المنظمات","قطعة","المنظمات","منظم شنط شفاف","قطعة",70,55,15,null,null,{"$f":"IFERROR(INDEX(مجموعة_الصنف1,MATCH(0,IF(مجموعة_الصنف1=\"\",\"\",COUNTIF($L$4:L120,مجموعة_الصنف1)),0)),\"\")","v":""}]
["ادوات منزلية","المنظمات","قطعة","المنظمات","منظم شنط شفاف ","قطعة",70,55,15,null,null,{"$f":"IFERROR(INDEX(مجموعة_الصنف1,MATCH(0,IF(مجموعة_الصنف1=\"\",\"\",COUNTIF($L$4:L121,مجموعة_الصنف1)),0)),\"\")","v":""}]
["ادوات منزلية","المنظمات","قطعة","المنظمات","منظم مكياج وحامل ادوات كريستال ","قطعة",80,65,15,null,null,{"$f":"IFERROR(INDEX(مجموعة_الصنف1,MATCH(0,IF(مجموعة_الصنف1=\"\",\"\",COUNTIF($L$4:L122,مجموعة_الصنف1)),0)),\"\")","v":""}]
["ادوات منزلية","المنظمات","قطعة","المنظمات","منظم مكياج وحامل ادوات كريستال لون دهبي","قطعة",80,65,15,null,null,{"$f":"IFERROR(INDEX(مجموعة_الصنف1,MATCH(0,IF(مجموعة_الصنف1=\"\",\"\",COUNTIF($L$4:L123,مجموعة_الصنف1)),0)),\"\")","v":""}]
["ادوات منزلية","المنظمات","قطعة","المنظمات","منظم ميكب الوان لون رصاصي ","قطعة",80,65,15,null,null,{"$f":"IFERROR(INDEX(مجموعة_الصنف1,MATCH(0,IF(مجموعة_الصنف1=\"\",\"\",COUNTIF($L$4:L124,مجموعة_الصنف1)),0)),\"\")","v":""}]
["ادوات منزلية","المنظمات","قطعة","المنظمات"," منظم درج ٥ عين","قطعة",80,65,15,null,null,{"$f":"IFERROR(INDEX(مجموعة_الصنف1,MATCH(0,IF(مجموعة_الصنف1=\"\",\"\",COUNTIF($L$4:L125,مجموعة_الصنف1)),0)),\"\")","v":""}]
["ادوات منزلية","المنظمات","قطعة","المنظمات","منظم ثلاجه اكريلك ","قطعة",80,65,15,null,null,{"$f":"IFERROR(INDEX(مجموعة_الصنف1,MATCH(0,IF(مجموعة_الصنف1=\"\",\"\",COUNTIF($L$4:L126,مجموعة_الصنف1)),0)),\"\")","v":""}]
["ادوات منزلية","المنظمات","قطعة","المنظمات","منظم حمام او مطبخ بدرج داخلي","قطعة",80,65,15,null,null,{"$f":"IFERROR(INDEX(مجموعة_الصنف1,MATCH(0,IF(مجموعة_الصنف1=\"\",\"\",COUNTIF($L$4:L127,مجموعة_الصنف1)),0)),\"\")","v":""}]
["ادوات منزلية","المنظمات","قطعة","المنظمات","منظم جنب تلاجه ","قطعة",90,75,15,null,null,{"$f":"IFERROR(INDEX(مجموعة_الصنف1,MATCH(0,IF(مجموعة_الصنف1=\"\",\"\",COUNTIF($L$4:L128,مجموعة_الصنف1)),0)),\"\")","v":""}]
["ادوات منزلية","المنظمات","قطعة","المنظمات","منظم مكياج الكليرك اسود","قطعة",90,75,15,null,null,{"$f":"IFERROR(INDEX(مجموعة_الصنف1,MATCH(0,IF(مجموعة_الصنف1=\"\",\"\",COUNTIF($L$4:L129,مجموعة_الصنف1)),0)),\"\")","v":""}]
["ادوات منزلية","المنظمات","قطعة","المنظمات","منظم شربات واندرات تريند ","قطعة",95,80,15,null,null,{"$f":"IFERROR(INDEX(مجموعة_الصنف1,MATCH(0,IF(مجموعة_الصنف1=\"\",\"\",COUNTIF($L$4:L130,مجموعة_الصنف1)),0)),\"\")","v":""}]
["ادوات منزلية","المنظمات","قطعة","المنظمات"," منظم ميكب كريستال","قطعة",100,85,15,null,null,{"$f":"IFERROR(INDEX(مجموعة_الصنف1,MATCH(0,IF(مجموعة_الصنف1=\"\",\"\",COUNTIF($L$4:L131,مجموعة_الصنف1)),0)),\"\")","v":""}]
["ادوات منزلية","المنظمات","قطعة","المنظمات","منظم ادوات كريستال واحد دهبي واحد فضي","قطعة",130,115,15,null,null,{"$f":"IFERROR(INDEX(مجموعة_الصنف1,MATCH(0,IF(مجموعة_الصنف1=\"\",\"\",COUNTIF($L$4:L132,مجموعة_الصنف1)),0)),\"\")","v":""}]
["ادوات منزلية","المنظمات","قطعة","المنظمات","منظم مطبخ متعدده الاستخدام الجديده","قطعة",140,125,15,null,null,{"$f":"IFERROR(INDEX(مجموعة_الصنف1,MATCH(0,IF(مجموعة_الصنف1=\"\",\"\",COUNTIF($L$4:L133,مجموعة_الصنف1)),0)),\"\")","v":""}]
["ادوات منزلية","المنظمات","قطعة","المنظمات","منظم الميكب","قطعة",160,145,15,null,null,{"$f":"IFERROR(INDEX(مجموعة_الصنف1,MATCH(0,IF(مجموعة_الصنف1=\"\",\"\",COUNTIF($L$4:L134,مجموعة_الصنف1)),0)),\"\")","v":""}]
["ادوات منزلية","المنظمات","قطعة","المنظمات","منظم ميكب اكليرك بمرايه ","قطعة",160,145,15,null,null,{"$f":"IFERROR(INDEX(مجموعة_الصنف1,MATCH(0,IF(مجموعة_الصنف1=\"\",\"\",COUNTIF($L$4:L135,مجموعة_الصنف1)),0)),\"\")","v":""}]
["ادوات منزلية","المنظمات","قطعة","المنظمات","منظم احذيه لون موف ","قطعة",160,145,15,null,null,{"$f":"IFERROR(INDEX(مجموعة_الصنف1,MATCH(0,IF(مجموعة_الصنف1=\"\",\"\",COUNTIF($L$4:L136,مجموعة_الصنف1)),0)),\"\")","v":""}]
["ادوات منزلية","المنظمات","قطعة","المنظمات"," منظم الفرش بورسلين  البينك والرمادي ","قطعة",180,165,15,null,null,{"$f":"IFERROR(INDEX(مجموعة_الصنف1,MATCH(0,IF(مجموعة_الصنف1=\"\",\"\",COUNTIF($L$4:L137,مجموعة_الصنف1)),0)),\"\")","v":""}]
["ادوات منزلية","المنظمات","قطعة","المنظمات","منظم اكسسوارات","قطعة",180,165,15,null,null,{"$f":"IFERROR(INDEX(مجموعة_الصنف1,MATCH(0,IF(مجموعة_الصنف1=\"\",\"\",COUNTIF($L$4:L138,مجموعة_الصنف1)),0)),\"\")","v":""}]
["ادوات منزلية","المنظمات","قطعة","المنظمات","منظم المكياج ٣ دور","قطعة",195,180,15]
["ادوات منزلية","المنظمات","قطعة","المنظمات","منظم معدان 3دور  ","قطعة",200,185,15]
["ادوات منزلية","المنظمات","قطعة","المنظمات","منظم ميكب اكليرك ب مرايا ","قطعة",200,185,15]
["ادوات منزلية","المنظمات","قطعة","المنظمات","منظمة الاكسسورات ال 4 قطع ","قطعة",200,185,15]
["ادوات منزلية","المنظمات","قطعة","المنظمات","منظم مطبخ معدن ٤ دور","قطعة",200,185,15]
["ادوات منزلية","المنظمات","قطعة","المنظمات","منظم معدن ٤ دور","قطعة",200,185,15]
["ادوات منزلية","المنظمات","قطعة","المنظمات","عدد  منظم الحمام كمودينو سمارت الجامبو  العصري","قطعة",200,185,15]
["ادوات منزلية","المنظمات","قطعة","المنظمات","منظم اكسسوار ومجوهرات ٢ دور اكريليك","قطعة",225,210,15]
["ادوات منزلية","المنظمات","قطعة","المنظمات"," كمود منظم 3 درج ","قطعة",225,210,15]
["ادوات منزلية","المنظمات","قطعة","المنظمات"," منظم ادراج اكريلك ","قطعة",255,240,15]
["ادوات منزلية","المنظمات","قطعة","المنظمات"," منظم ميكب دوار 360 ","قطعة",260,245,15]
["ادوات منزلية","المنظمات","قطعة","المنظمات","منظم ميكب اكليرك ب مرايا ","قطعة",300,285,15]
["ادوات منزلية","المنظمات","قطعة","المنظمات"," طقم منظم فوط وملابس كل طقم ٣ قطع ","قطعة",300,285,15]
["ادوات منزلية","المنظمات","قطعة","المنظمات"," منظم 9 درج ايكيا ابيض","قطعة",380,365,15]
["ادوات منزلية","المنظمات","قطعة","المنظمات"," منظم درج ايكيا ٩ درج ","قطعة",540,525,15]
["ادوات منزلية","المنظمات","قطعة","المنظمات","منظم ٩ درج ايكيا ","قطعة",640,625,15]
["ادوات منزلية","المنظمات","قطعة","المنظمات","منظم ٩ درج خشب ايكيا ابيض ","قطعة",1050,1035,15]
["ادوات منزلية","المنظمات","قطعة","المنظمات","منظم ايكيا ","قطعة",1050,1035,15]
["ادوات منزلية","المنظمات","قطعة","المنظمات","منظم خشب  ابيض","قطعة",1050,1035,15]
["ادوات منزلية","المنظمات","قطعة","المنظمات","منظم خشب الوان ","قطعة",1050,1035,15]
["ادوات منزلية","انتيكات","قطعة","انتيكات","انتيكه علي شكل عجله اوف وايت","قطعة",1050,1035,15]
["ادوات منزلية","باسكت","قطعة","باسكت","باسكت غسيل ايكيامنقط ابيض ف اسود","قطعة",1050,1035,15]
["ادوات منزلية","باسكت","قطعة","باسكت","باسكت درفه","قطعة",1100,1085,15]
["ادوات منزلية","باسكت","قطعة","باسكت","باسكت درفه سليكون","قطعة",20,5,15]
["ادوات منزلية","باسكت","قطعة","باسكت","باسكت لعب اطفال","قطعة",60,45,15]
["ادوات منزلية","باسكت","قطعة","باسكت"," باسكت ايكيا بشكلين مختلفين ","قطعة",75,60,15]
["ادوات منزلية","باسكت","قطعة","باسكت"," باسكت غسيل كتان ","قطعة",75,60,15]
["ادوات منزلية","باسكت","قطعة","باسكت","سبت غسيل ليفانا لون بينك ","قطعة",120,105,15]
["ادوات منزلية","براد","قطعة","براد","براد استالس","قطعة",150,135,15]
["ادوات منزلية","تربو","قطعة","تربو"," تربو ارفف ميني ٣ دور لون سيمون","قطعة",180,165,15]
["ادوات منزلية","تربو","قطعة","تربو","تربو الشروق لون بنى","قطعة",320,305,15]
["ادوات منزلية","تربو","قطعة","تربو","تربو راتان مروحه  بني ","قطعة",100,85,15]
["ادوات مطبخ","تربو","قطعة","تربو","التربو العبقري المدور ٥ دور","قطعة",60,45,15]
["ادوات مطبخ","ترولي","قطعة","ترولي"," ترولي ٣ دور","قطعة",240,225,15]
["ادوات مطبخ","ترولي","قطعة","ترولي","تروللي متعدد الاستخدامات  دور لون ابيض","قطعة",250,235,15]
["ادوات مطبخ","ترولي","قطعة","ترولي","ترولى ٣ دور ","قطعة",820,805,15]
["ادوات منزلية","ترولي","قطعة","ترولي"," ترولي ٤ دور","قطعة",120,105,15]
["ادوات منزلية","ترولي","قطعة","ترولي","تروللى وطنيه ٣ دور ابيض ","قطعة",120,105,15]
["ادوات منزلية","ترولي","قطعة","ترولي","تروللي متعدد الاستخدام ٤دور","قطعة",120,105,15]
["ادوات منزلية","جردل","قطعة","جردل","جردل سوبر فلات الأصلي ","قطعة",150,135,15]
["ادوات منزلية","جردل","قطعة","جردل","الجردل الغواصة لون احمر","قطعة",150,135,15]
["ادوات منزلية","جردل","قطعة","جردل","جردل الغواصه لون احمر","قطعة",300,285,15]
["ادوات نظافة","جردل","قطعة","جردل"," جردل موب تركي","قطعة",250,235,15]
["ادوات نظافة","جردل","قطعة","جردل"," جردل تركي ","قطعة",260,245,15]
["ادوات نظافة","جزامات","قطعة","جزامات","جزامه زجزاج ٥دور","قطعة",260,245,15]
["ادوات نظافة","جزامات","قطعة","جزامات","جزامه زجزاج لبني ","قطعة",270,255,15]
["ادوات نظافة","جزامات","قطعة","جزامات","جزامه ٦ دور","قطعة",500,485,15]
["ادوات منزلية","جزامات","قطعة","جزامات","جزامه معدن اروستاتيك ١٠ دور","قطعة",100,85,15]
["ادوات منزلية","جزامات","قطعة","جزامات"," جزامه معدن ٤ دور ","قطعة",100,85,15]
["ادوات منزلية","جزامات","قطعة","جزامات","جزامه ٥دور لون كحلي","قطعة",115,100,15]
["ادوات منزلية","جزامات","قطعة","جزامات","جزامه قلب ١٠دور","قطعة",150,135,15]
["ادوات منزلية","جزامات","قطعة","جزامات","جزامه رتان بلاستيك","قطعة",170,155,15]
["ادوات منزلية","جزامات","قطعة","جزامات","جزامة ١٠ دور لون بنى ","قطعة",170,155,15]
["ادوات منزلية","جزامات","قطعة","جزامات","جزامه 10 دور معدن كفر قماش","قطعة",180,165,15]
["ادوات منزلية","جزامات","قطعة","جزامات","جزامه قماش ١٠ دور لون بني","قطعة",210,195,15]
["ادوات منزلية","حامل","قطعة","حامل","حامل ليفة ","قطعة",270,255,15]
["ادوات منزلية","حامل","قطعة","حامل","حامل اكياس","قطعة",270,255,15]
["ادوات منزلية","حامل","قطعة","حامل","حامل مجات","قطعة",270,255,15]
["ادوات منزلية","حامل","قطعة","حامل","حامل طقم توزيع ","قطعة",15,0,15]
["ادوات منزلية","حامل","قطعة","حامل","حامل ورق تواليت مقاوم للماء لون سيمون","قطعة",30,15,15]
["ادوات منزلية","حامل","قطعة","حامل","حامل اكياس لون مش ازرق","قطعة",30,15,15]
["ادوات منزلية","حامل","قطعة","حامل"," حامل مناديل خشب ","قطعة",35,20,15]
["ادوات منزلية","حامل","قطعة","حامل","حامل مكانس فردى","قطعة",40,25,15]
["ادوات منزلية","حامل","قطعة","حامل"," حامل مناديل تركى","قطعة",60,45,15]
["ادوات منزلية","حامل","قطعة","حامل"," حامل مكانس خماسي","قطعة",70,55,15]
["ادوات منزلية","حامل","قطعة","حامل","حامل مجات مزدوج","قطعة",80,65,15]
["ادوات منزلية","حامل","قطعة","حامل","حامل المعالق بحامل معدم دهبي لون البينك ","قطعة",85,70,15]
["ادوات منزلية","حامل","قطعة","حامل"," حامل اكواب قارورة","قطعة",90,75,15]
["ادوات منزلية","خدمة التوصيل","-","خدمة التوصيل","التوصيل","قطعة",140,125,15]
["ادوات منزلية","خدمة التوصيل","-","خدمة التوصيل","  التوصيل","قطعة",220,205,15]
["ادوات منزلية","خدمة التوصيل","-","خدمة التوصيل","التوصيل","قطعة",350,335,15]
["خدمة التوصيل","خدمة التوصيل","-","خدمة التوصيل","خدمة التوصيل - 0","-",0,-15,15]
["خدمة التوصيل","خدمة التوصيل","-","خدمة التوصيل","خدمة التوصيل - 25","-",25,10,15]
["خدمة التوصيل","خدمة التوصيل","-","خدمة التوصيل","خدمة التوصيل - 30","-",30,15,15]
["خدمة التوصيل","خدمة التوصيل","-","خدمة التوصيل","خدمة التوصيل - 40","-",40,25,15]
["خدمة التوصيل","خدمة التوصيل","-","خدمة التوصيل","خدمة التوصيل - 45","-",45,30,15]
["خدمة التوصيل","خدمة التوصيل","-","خدمة التوصيل","خدمة التوصيل - 50","-",50,35,15]
["خدمة التوصيل","خدمة التوصيل","-","خدمة التوصيل","خدمة التوصيل - 55","-",55,40,15]
["خدمة التوصيل","خدمة التوصيل","-","خدمة التوصيل","خدمة التوصيل - 60","-",60,45,15]
["خدمة التوصيل","خدمة التوصيل","-","خدمة التوصيل","خدمة التوصيل - 65","-",65,50,15]
["خدمة التوصيل","خدمة التوصيل","-","خدمة التوصيل","خدمة التوصيل - 70","-",70,55,15]
["خدمة التوصيل","خدمة التوصيل","-","خدمة التوصيل","خدمة التوصيل - 75","-",75,60,15]
["خدمة التوصيل","خدمة التوصيل","-","خدمة التوصيل","خدمة التوصيل - 80","-",80,65,15]
["خدمة التوصيل","خدمة التوصيل","-","خدمة التوصيل","خدمة التوصيل - 85","-",85,70,15]
["خدمة التوصيل","خدمة التوصيل","-","خدمة التوصيل","خدمة التوصيل - 90","-",90,75,15]
["خدمة التوصيل","خدمة التوصيل","-","خدمة التوصيل","خدمة التوصيل - 95","-",95,80,15]
["خدمة التوصيل","خدمة التوصيل","-","خدمة التوصيل","خدمة التوصيل - 100","-",100,85,15]
["خدمة التوصيل","خزنات","قطعة","خزنات","حافظه تخزين الجامبو","-",125,110,15]
["خدمة التوصيل","خزنات","قطعة","خزنات","خزينه سريه شكل كتاب","-",150,135,15]
["خدمة التوصيل","خزنات","قطعة","خزنات","درج تخزين سحرى مقاس صغير  2 لبني 3ابيض","-",200,185,15]
["ادوات منزلية","خزنات","قطعة","خزنات","شنطه تخزين","قطعة",120,105,15]
["ادوات منزلية","خزنات","قطعة","خزنات"," درج التخزين السحري حجم كبير  الدرج  الدرج يكون شفاف ","قطعة",120,105,15]
["ادوات منزلية","درج تلاجه","قطعة","درج تلاجه"," درج تلاجه معلق لون فيروزي ","قطعة",325,310,15]
["ادوات منزلية","درج تلاجه","قطعة","درج تلاجه","درج تلاجه جامبو لون جراي","قطعة",360,345,15]
["ادوات منزلية","درج تلاجه","قطعة","درج تلاجه","٣ درج تلاجه معلق ","قطعة",450,435,15]
["ادوات منزلية","درج تلاجه","قطعة","درج تلاجه","درج تلاجه صغير لون اييض","قطعة",20,5,15]
["ادوات منزلية","درج تلاجه","قطعة","درج تلاجه","درج تلاجه بيد شفاف","قطعة",50,35,15]
["ادوات منزلية","درج تلاجه","قطعة","درج تلاجه","حجم صغير سعر الدرج يكون شفاف","قطعة",60,45,15]
["ادوات منزلية","دواسات","قطعة","دواسات","دواسه فلاور","قطعة",60,45,15]
["ادوات منزلية","دولاب","قطعة","ارفف","دولاب 3 درفه لون كحلي  ","قطعة",70,55,15]
["ادوات منزلية","دولاب","قطعة","استاند","دولاب الاستاند المزدوج","قطعة",130,115,15]
["ادوات منزلية","دولاب","قطعة","استاند","دولاب الاستاند المزدوج ","قطعة",50,35,15]
["ادوات منزلية","دولاب","قطعة","دولاب","دولاب قماش كابتونيه ٣ ضلفه لون موف ","قطعة",90,75,15]
["ادوات منزلية","دولاب","قطعة","دولاب"," دولاب قماش كابتونيه ٣ ضلفه لون موف","قطعة",400,385,15]
["ادوات منزلية","دولاب","قطعة","دولاب","دولاب 3 ضلفه قماش كابتونيه لون نبيتى ","قطعة",400,385,15]
["ادوات منزلية","دولاب","قطعة","دولاب","دولاب ٣درفه  لون نبيتي","قطعة",400,385,15]
["ادوات منزلية","دولاب","قطعة","دولاب","دولاب ٣درفه لون موف","قطعة",400,385,15]
["ادوات منزلية","دولاب","قطعة","دولاب","دولاب ٣درفه لون نبيتي","قطعة",400,385,15]
["ادوات منزلية","دولاب","قطعة","دولاب"," دولاب الاطفال الجامبو ٤ دور اللون البينك","قطعة",780,765,15]
["ادوات منزلية","دولاب","قطعة","دولاب","دولاب الوطنيه ٤دور لون كشمير","قطعة",780,765,15]
["ادوات منزلية","دولاب","قطعة","دولاب","دولاب الوطنيه اللي لونه بيج في بني","قطعة",780,765,15]
["ادوات منزلية","دولاب","قطعة","دولاب","دولاب الوطنيه بينك ","قطعة",780,765,15]
["ادوات منزلية","دولاب","قطعة","دولاب","دولاب وطنيه ٤ دور بني ف بيج ","قطعة",780,765,15]
["ادوات منزلية","دولاب","قطعة","دولاب","دولاب وطنيه ٤ دور لون بيج ف بنى","قطعة",780,765,15]
["ادوات منزلية","دولاب","قطعة","دولاب","دولاب الوطنية ","قطعة",1560,1545,15]
["ادوات منزلية","ديسبنسر","قطعة","ديسبنسر","ديسبنسر عصير زجاج ","قطعة",50,35,15]
["ادوات منزلية","ديسبنسر","قطعة","ديسبنسر","ديسبنسر عصير","قطعة",120,105,15]
["ادوات منزلية","ديسبنسر","قطعة","ديسبنسر","ديسبنسر عصير زجاج","قطعة",120,105,15]
["ادوات منزلية","ديسبنسر","قطعة","ديسبنسر","ديسبنسر البقوليات بقاعدة الزوجي","قطعة",340,325,15]
["ادوات منزلية","ديسبنسر","قطعة","ديسبنسر","ترابيزه تيبل ديسك ترابيزه لاب توب وكمبيوتر","قطعة",480,465,15]
["ادوات منزلية","ديكورات","قطعة","ديكورات","مكعب شمع موف","قطعة",40,25,15]
["ادوات منزلية","ديكورات","قطعة","ديكورات","شجره اكسسوارات لون ابيض","قطعة",45,30,15]
["ادوات منزلية","ديكورات","قطعة","ديكورات","فازه ورد  لون بيبي بلو","قطعة",50,35,15]
["ادوات منزلية","ديكورات","قطعة","ديكورات"," باكت كشافات ليد بالريموت","قطعة",120,105,15]
["ادوات منزلية","ديكورات","قطعة","ديكورات","برواز فيشه","قطعة",120,105,15]
["ادوات منزلية","ركنة حمام","قطعة","ركنة حمام","ركنه حمام ٢ دور لون ابيض ","قطعة",130,115,15]
["ادوات منزلية","ركنة حمام","قطعة","ركنة حمام","ركنه حمام دوارة لون ابيض ","قطعة",130,115,15]
["ادوات منزلية","ركنة حمام","قطعة","ركنة حمام","ركنه حمام دواره","قطعة",130,115,15]
["ادوات حمام","ركنة حمام","قطعة","ركنة حمام"," ركنة الحمام سقف ٤ دور","قطعة",270,255,15]
["ادوات منزلية","ركنة حمام","قطعة","ركنة حمام","ركنه حمام سقف  ٤ دور","قطعة",270,255,15]
["ادوات منزلية","ركنة حمام","قطعة","ركنة حمام","ركنة الحمام الخشب","قطعة",500,485,15]
["ادوات منزلية","ركنة حمام","قطعة","ركنة حمام","ركنة حمام خشب","قطعة",530,515,15]
["ادوات منزلية","ركنة حمام","قطعة","ركنة حمام","ركنه الحمام الخشب ","قطعة",530,515,15]
["ادوات منزلية","ركنة حمام","قطعة","ركنة حمام","ركنه حمام خشب ","قطعة",530,515,15]
["ادوات منزلية","زجاجة","قطعة","زجاجة","زجاجة مياه باندا بشاليموه ","قطعة",75,60,15]
["ادوات منزلية","زجاجة","قطعة","زجاجة","زجاجه باندا ","قطعة",75,60,15]
["ادوات منزلية","زجاجة","قطعة","زجاجة","زجاجه مايه باندا بشاليموه ","قطعة",75,60,15]
["ادوات منزلية","زجاجة","قطعة","زجاجة"," زجاجه باندا بدون شاليموه  الباند السودا","قطعة",80,65,15]
["ادوات منزلية","ستائر","قطعة","ستائر"," ماسك ستاره فضي ","قطعة",40,25,15]
["ادوات منزلية","ستائر","قطعة","ستائر"," ستارة بانيو وتر بروف ب  لون لبني\n","قطعة",80,65,15]
["ادوات منزلية","ستائر","قطعة","ستائر"," ستاره حمام ساده لون لبني","قطعة",80,65,15]
["ادوات منزلية","ستائر","قطعة","ستائر","ستاره بانيو وتر بروف","قطعة",90,75,15]
["ادوات منزلية","سكاكين","قطعة","سكاكين","طقم سكاكين احمر","قطعة",50,35,15]
["ادوات منزلية","سلم","قطعة","سلم","سلم الوان ","قطعة",150,135,15]
["ادوات منزلية","سلم","قطعة","سلم","سلم ديكور ابيض ","قطعة",150,135,15]
["ادوات منزلية","سلم","قطعة","سلم","سلم ديكور ابيض","قطعة",200,185,15]
["ادوات منزلية","شازلونج","قطعة","شازلونج"," شازلونج الهواء المميز لون اخضر","قطعة",200,185,15]
["ادوات منزلية","شازلونج","قطعة","شازلونج"," شازلونج الهواء","قطعة",400,385,15]
["ادوات منزلية","شانون","قطعة","شانون","شانون الحجم الصغير ٤ درج ","قطعة",200,185,15]
["ادوات منزلية","شانون","قطعة","شانون","شانون جنا 3 دور ","قطعة",200,185,15]
["ادوات منزلية","شانون","قطعة","شانون","شانون فلافيلو","قطعة",220,205,15]
["ادوات منزلية","شانون","قطعة","شانون","شانون تريند ٤ دور","قطعة",260,245,15]
["ادوات منزلية","شانون","قطعة","شانون","شانون التريند ٥دور","قطعة",300,285,15]
["ادوات منزلية","شانون","قطعة","شانون","شانون تريند ٥ دور","قطعة",300,285,15]
["ادوات منزلية","شانون","قطعة","شانون","شانون ٣ دور  الوان بناتى وولادى ","قطعة",320,305,15]
["ادوات منزلية","شانون","قطعة","شانون","كمود ٤ دور  لون بينك","قطعة",380,365,15]
["ادوات منزلية","شانون","قطعة","شانون"," شانون كارمن الوطنيه العملاق","قطعة",390,375,15]
["ادوات منزلية","شانون","قطعة","شانون","شانون الوطنيه ٥ دور ","قطعة",390,375,15]
["ادوات منزلية","شانون","قطعة","شانون","شانون ٤ دور ابيض شفاف.","قطعة",550,535,15]
["ادوات منزلية","شانون","قطعة","شانون","وحده ادراج الوان ","قطعة",1150,1135,15]
["ادوات منزلية","شماعات","قطعة","شماعات","شماعه عنكبوت","قطعة",35,20,15]
["ادوات منزلية","شماعات","قطعة","شماعات"," شماعه طرح ","قطعة",40,25,15]
["ادوات منزلية","شماعات","قطعة","شماعات","طقم شماعات","قطعة",60,45,15]
["ادوات منزلية","شماعات","قطعة","شماعات"," دسته شماعات","قطعة",220,205,15]
["ادوات منزلية","شماعات","قطعة","شماعات"," شماعه طويله لون بينك ","قطعة",230,215,15]
["ادوات منزلية","شماعات","قطعة","شماعات","دست شماعات معدن ١٠ قطع","قطعة",250,235,15]
["ادوات منزلية","شماعات","قطعة","شماعات"," شماعه الموناليزا ","قطعة",320,305,15]
["ادوات منزلية","شماعات","قطعة","شماعات","شماعه موناليزا","قطعة",320,305,15]
["ادوات منزلية","شماعات","قطعة","شماعات","شماعه نبيتي ","قطعة",350,335,15]
["ادوات منزلية","شماعات","قطعة","شماعات","شماعه بينك ولبني","قطعة",420,405,15]
["ادوات منزلية","شنط","قطعة","شنط","شنطة المجوهرات التريند ","قطعة",390,375,15]
["ادوات منزلية","شنط","قطعة","شنط","شنطة مجوهرات ","قطعة",390,375,15]
["ادوات منزلية","صبانه","قطعة","صبانه","صبانه ٢ دور تركى ","قطعة",25,10,15]
["ادوات منزلية","صفايه","قطعة","صفايه","صفاية رز","قطعة",15,0,15]
["ادوات منزلية","صفايه","قطعة","صفايه","صفايه حوض ركنه","قطعة",20,5,15]
["ادوات منزلية","صفايه","قطعة","صفايه"," صفايه حوض","قطعة",80,65,15]
["ادوات منزلية","صفايه","قطعة","صفايه","صفايه المعالق الاستانلس","قطعة",190,175,15]
["ادوات منزلية","صواني","قطعة","صواني","صينيه ايكيا بيضا","قطعة",40,25,15]
["ادوات منزلية","صواني","قطعة","صواني"," صينيه كب كيك تيفال","قطعة",65,50,15]
["ادوات منزلية","صواني","قطعة","صواني","صينيه تسالي ومكسرات ٨ عين","قطعة",80,65,15]
["ادوات منزلية","صواني","قطعة","صواني","صنية التحمير المستطيلة","قطعة",240,225,15]
["ادوات منزلية","طاولات","قطعة","طاولات"," ترابيزه مذاكره وعشاء  لون روز ","قطعة",260,245,15]
["ادوات منزلية","طقم حمام","قطعة","طقم حمام","طقم حمام ","قطعة",140,125,15]
["ادوات منزلية","طقم حمام","قطعة","طقم حمام","طقم حمام ٤ قطع ","قطعة",250,235,15]
["ادوات منزلية","طقم حمام","قطعة","طقم حمام","طقم حمام قطيفه اسود ف دهبي","قطعة",250,235,15]
["ادوات منزلية","طقم حمام","قطعة","طقم حمام","طقم حمام تركي خامه اكريلك ب  لون ابيض","قطعة",300,285,15]
["ادوات منزلية","طقم حمام","قطعة","طقم حمام","طقم حمام تركي لون اسود ","قطعة",300,285,15]
["ادوات منزلية","طقم شاي","قطعة","طقم شاي"," طقم شاي تقديم بيركس ","قطعة",220,205,15]
["ادوات منزلية","طقم شاي","قطعة","طقم شاي","طقم شاي تقديم بيركس","قطعة",220,205,15]
["ادوات منزلية","طقم علب","قطعة","طقم علب","طقم علب فربجو","قطعة",40,25,15]
["ادوات منزلية","طقم علب","قطعة","طقم علب","طقم علب ايكيا","قطعة",200,185,15]
["ادوات منزلية","علب","قطعة","علب","علبة توابل مقسمه ٤ ","قطعة",55,40,15]
["ادوات منزلية","علب","قطعة","علب","علبه مناديل شكل راديو","قطعة",85,70,15]
["ادوات منزلية","علب","قطعة","علب","علب ايكيا","قطعة",200,185,15]
["ادوات منزلية","علب","قطعة","علب","علب ايكيا ","قطعة",200,185,15]
["ادوات منزلية","علب","قطعة","علب","علبه مناديل كريستال  لون فضي","قطعة",240,225,15]
["ادوات منزلية","علب","قطعة","علب","علبه مناديل كريستال فضي","قطعة",240,225,15]
["ادوات منزلية","غطاء اثاث","قطعة","غطاء اثاث","كراسي سفره قطيفه بني","قطعة",150,135,15]
["ادوات منزلية","غطاء اثاث","قطعة","غطاء اثاث"," طقم حمام قطيفه 3D اسود","قطعة",250,235,15]
["ادوات منزلية","غطاء اثاث","قطعة","غطاء اثاث"," طقم حمام قطيفه اسود","قطعة",250,235,15]
["ادوات منزلية","غطاء اثاث","قطعة","غطاء اثاث"," كراسي قطيفه رصاصي فاتح","قطعة",250,235,15]
["ادوات منزلية","غطاء اثاث","قطعة","غطاء اثاث","طقم انتريه قطيفه كحلي ٤ قطع ","قطعة",400,385,15]
["ادوات منزلية","غطاء اثاث","قطعة","غطاء اثاث","طقم انتريه قطيفه جامبو بني ","قطعة",450,435,15]
["ادوات منزلية","غطاء اثاث","قطعة","غطاء اثاث"," طقم انتريه قطيفه جامبو طقم لون رصاصي وازرق","قطعة",900,885,15]
["ادوات منزلية","قاعده غساله","قطعة","قاعده غساله"," قاعده غساله مقاس كبير","قطعة",210,195,15]
["ادوات منزلية","قاعده غساله","قطعة","قاعده غساله","قاعدة غسالة متحركة ","قطعة",225,210,15]
["ادوات منزلية","كاتيل","قطعة","كاتيل","كاتل جرانيت موف ","قطعة",130,115,15]
["ادوات منزلية","كاتيل","قطعة","كاتيل","طقم سبرتايه و٣ كنكات ","قطعة",240,225,15]
["ادوات منزلية","كاتيل","قطعة","كاتيل","الكاتل 2في 1","قطعة",475,460,15]
["ادوات منزلية","كفرات متنوعه","قطعة","كفرات متنوعه"," كفر تلاجه","قطعة",30,15,15]
["ادوات منزلية","كفرات متنوعه","قطعة","كفرات متنوعه"," كفر ترابيزه مكواه رخامي","قطعة",75,60,15]
["ادوات منزلية","كفرات متنوعه","قطعة","كفرات متنوعه"," كفر مروحه ","قطعة",90,75,15]
["ادوات منزلية","كفرات متنوعه","قطعة","كفرات متنوعه","كفر انتريه قطيفه جامبو كشمير","قطعة",450,435,15]
["ادوات منزلية","لاصق","قطعة","لاصق","شريط دبل فيس","قطعة",60,45,15]
["ادوات منزلية","لاصق","قطعة","لاصق","مليء الفراغات ","قطعة",120,105,15]
["ادوات منزلية","ماسورة استانلس","قطعة","ماسورة استانلس","ماسوره استانلس الحجم الصغير","قطعة",110,95,15]
["ادوات منزلية","ماسورة استانلس","قطعة","ماسورة استانلس","الماسورة مقاس كبير","قطعة",180,165,15]
["ادوات منزلية","ماسورة استانلس","قطعة","ماسورة استانلس","ماسورة استانلس مقاس كبير ","قطعة",180,165,15]
["ادوات منزلية","ماسورة استانلس","قطعة","ماسورة استانلس","ماسوره استانلس الحجم الكبير","قطعة",180,165,15]
["ادوات منزلية","ماسورة استانلس","قطعة","ماسورة استانلس","ماسوره استانلس قابله للتطويل  3 متر ","قطعة",180,165,15]
["ادوات منزلية","ماسورة استانلس","قطعة","ماسورة استانلس","ماسوره مقاس كبير حتى ٣ متر","قطعة",180,165,15]
["ادوات منزلية","ماكينات متنوعه","قطعة","ماكينات متنوعه","صانع فشار","قطعة",35,20,15]
["ادوات منزلية","ماكينات متنوعه","قطعة","ماكينات متنوعه","يوني كورن","قطعة",45,30,15]
["ادوات منزلية","ماكينات متنوعه","قطعة","ماكينات متنوعه","ماكينه حشو ورق عنب ","قطعة",70,55,15]
["ادوات منزلية","ماكينات متنوعه","قطعة","ماكينات متنوعه","ميزان مطبخ ديجيتال ","قطعة",100,85,15]
["ادوات منزلية","ماكينات متنوعه","قطعة","ماكينات متنوعه","واحد مضرب بالدورق ","قطعة",110,95,15]
["ادوات منزلية","ماكينات متنوعه","قطعة","ماكينات متنوعه","محضر وكنكه قهوه ٩ كوب","قطعة",130,115,15]
["ادوات منزلية","ماكينات متنوعه","قطعة","ماكينات متنوعه","نافورة دخان البخور","قطعة",140,125,15]
["ادوات منزلية","ماكينات متنوعه","قطعة","ماكينات متنوعه","ماكينه خياطه كهربائيه","قطعة",175,160,15]
["ادوات منزلية","ماكينات متنوعه","قطعة","ماكينات متنوعه","مضرب شحن ٢ ف ١","قطعة",175,160,15]
["ادوات منزلية","ماكينات متنوعه","قطعة","ماكينات متنوعه","ماكينة فشار","قطعة",380,365,15]
["ادوات منزلية","مانع اتربة","قطعة","مانع اتربة","مانع اتربة","قطعة",100,85,15]
["ادوات منزلية","مانع اتربة","قطعة","مانع اتربة","مانع الاتربة ","قطعة",100,85,15]
["ادوات منزلية","مانع اتربة","قطعة","مانع اتربة","مانع اتربه ","قطعة",175,160,15]
["ادوات منزلية","مرايات","قطعة","مرايات","مرايا ديكور سيلڤر ","قطعة",150,135,15]
["ادوات منزلية","مرايات","قطعة","مرايات"," ميكب بمرايه","قطعة",180,165,15]
["ادوات منزلية","مريله","قطعة","مريله"," مريله مطبخ","قطعة",50,35,15]
["ادوات منزلية","مريله","قطعة","مريله"," مريله مطبخ ديزني مستورده  لون أخضر","قطعة",50,35,15]
["ادوات منزلية","مريله","قطعة","مريله"," مريله مطبخ مستورده ديزني لون جراي","قطعة",50,35,15]
["ادوات منزلية","مريله","قطعة","مريله","مريله مطبخ ميكي ","قطعة",55,40,15]
["ادوات منزلية","مساحه","قطعة","مساحه"," مساحه شرشوبه بيد استانليس","قطعة",50,35,15]
["ادوات منزلية","مساحه","قطعة","مساحه","مساحه سوبر ميد الاصليه ","قطعة",270,255,15]
["ادوات منزلية","مسدس تحمير","قطعة","مسدس تحمير","مسدس تحمير","قطعة",150,135,15]
["ادوات منزلية","مسدس تحمير","قطعة","مسدس تحمير"," مسدس تحمير جامبو","قطعة",175,160,15]
["ادوات منزلية","مسدس تحمير","قطعة","مسدس تحمير","مسدس تحمير الجامبو","قطعة",175,160,15]
["ادوات منزلية","مسدس تحمير","قطعة","مسدس تحمير","مسدس تحمير كبير","قطعة",175,160,15]
["ادوات منزلية","مضخات","قطعة","مضخات","مضخه صابون  ","قطعة",30,15,15]
["ادوات منزلية","مضخات","قطعة","مضخات"," مضخة يدويه ","قطعة",45,30,15]
["ادوات منزلية","مضخات","قطعة","مضخات","مضخه صابون","قطعة",45,30,15]
["ادوات منزلية","مطاحن","قطعة","مطاحن","مطحنه فلفل استانلس","قطعة",80,65,15]
["ادوات منزلية","مطاحن","قطعة","مطاحن","مطحنه فلفل خشب مقاس صغير ","قطعة",100,85,15]
["ادوات منزلية","مفارش","قطعة","مفارش","مفرش رول لون بني","قطعة",50,35,15]
["ادوات منزلية","منشر ملابس","قطعة","منشر ملابس","منشر 6حبل","قطعة",250,235,15]
["ادوات منزلية","منشر ملابس","قطعة","منشر ملابس","منشر الحائط ٦حبل ","قطعة",250,235,15]
["ادوات منزلية","منشر ملابس","قطعة","منشر ملابس","منشر حائطى ٦ حبل ","قطعة",250,235,15]
["ادوات منزلية","منشر ملابس","قطعة","منشر ملابس","منشر","قطعة",300,285,15]
["ادوات منزلية","منشر ملابس","قطعة","منشر ملابس"," منشر عملاق ","قطعة",340,325,15]
["ادوات منزلية","منشر ملابس","قطعة","منشر ملابس"," منشر حائطى ١٢ حبل","قطعة",400,385,15]
["ادوات منزلية","منشر ملابس","قطعة","منشر ملابس","اقوي منشر حائطي بالسوق ١٢ حبل","قطعة",400,385,15]
["ادوات منزلية","منشر ملابس","قطعة","منشر ملابس","منشر حائطى ١٢ حبل","قطعة",400,385,15]
["ادوات منزلية","منشر ملابس","قطعة","منشر ملابس","منشر حائطي 12حبل","قطعة",400,385,15]
["ادوات منزلية","منشر ملابس","قطعة","منشر ملابس","منشر حائطي 12حبل","قطعة",400,385,15]
["ادوات تجميل","منظف","قطعة","منظف"," المنظف البخاري 5 في 1","قطعة",800,785,15]
["ادوات تجميل","منظف","قطعة","منظف"," المنظف البخاري 5 في 1 ","قطعة",800,785,15]
["ادوات تجميل","منظف","قطعة","منظف","منظف بخارى","قطعة",800,785,15]
["ادوات منزلية","منظمات للمطبخ","قطعة","منظمات للمطبخ","طقم توابل اكريلك كريستال بيور جدا ","قطعة",80,65,15]
["ادوات منزلية","منظمات للمطبخ","قطعة","منظمات للمطبخ","جنب تلاجة","قطعة",100,85,15]
["ادوات منزلية","منظمات للمطبخ","قطعة","منظمات للمطبخ","جنب تلاجه ","قطعة",100,85,15]
["ادوات منزلية","منظمات للمطبخ","قطعة","منظمات للمطبخ","جنب تلاجه لون اسود","قطعة",100,85,15]
["ادوات منزلية","منظمات للمطبخ","قطعة","منظمات للمطبخ","طقم توابل مغناطيس","قطعة",150,135,15]
["ادوات منزلية","منظمات للمطبخ","قطعة","منظمات للمطبخ","طقم توابل اكريلك","قطعة",320,305,15]

{"sheet":"فاتورة مبيعات","index":1,"n_rows":13,"n_cols":7,"rows_kept":13,"cut":false,"hidden":false,"merged":[[3,6,5,6]]}
[]
[]
["التاريخ",{"$f":"TEXT(TODAY(),\"DD-MM-YYYY\")","v":"15-11-2022"},"اسم العميل","احمد","شركة الشحن","السهم للشحن","الاجمالـــــــــــــــــــــــي"]
["الشركة","HOMEtuk","رقم التيلفون",10520,"اسم المندوب","محمد السيد",{"$f":"SUBTOTAL(9,$G$9:$G$200)+$F$6","v":0}]
["رقم الفاتوره",1,"العنوان"," حافظ وهبه امام بنك الدم","تيلفون المندوب",55]
["كود الفاتورة",{"$f":"CONCATENATE(TEXT(B5,\"0##########\"),\" - \",B4,\" - \",TEXT(B3,\"DD-MM-YYYY\"))","v":"01 - HOMEtuk - 15-11-2022"},"المحافظة","طنطا","خدمة التوصيل"]
[]
["القسم","مجموعة الصنف","الوحدة","اسم الصنف","السعر","الكمية","الاجمالي"]
["ادوات منزلية"," المطبقايات","قطعة","المطبقيه العملاقه مقاس ٦٥سم",510,1,false]
["ادوات منزلية","ادوات اخري","قطعة"," قفل ثلاجه",20,1,false]
["ادوات منزلية","ادوات اخري","قطعة"," قفل ثلاجه",20,3,false]
["ادوات منزلية"," المطبقايات","قطعة","المطبقيه العملاقه مقاس ٦٥سم",510,2,false]
["ادوات منزلية","ادوات اخري","قطعة","فوطه مايكروفايبر فرو تقيل ١ حجم وسط ١ حجم جامبو",55,1,false]

{"sheet":"اليومية العامه","index":2,"n_rows":2,"n_cols":19,"rows_kept":2,"cut":false,"hidden":false,"merged":[]}
[]
["الشهر","الشهر","الشركة","رقم الفاتوره","كود الفاتورة","مجموعة الصنف","اسم الصنف","الوحدة","السعر","الكمية","الاجمالي","اسم العميل","رقم التيلفون","العنوان","المحافظة","شركة الشحن","اسم المندوب","تيلفون المندوب","خدمة التوصيل"]